bitfinex/quotes_SOLUSD_20230701
["timestamp","ask_amount","ask_price","bid_price","bid_amount"]
[1688185685714,23.409,18.07,18.052,115.324]
[1688185685903,23.409,18.07,18.052,60.324]
[1688185686433,23.409,18.07,18.053,55.0]
[1688185686605,23.409,18.07,18.052,60.324]
[1688185686804,23.409,18.07,18.055,23.427]
[1688185687221,23.409,18.07,18.049,60.335]
[1688185687415,20.0,18.069,18.041,97.1408]
[1688185687621,3.26084,18.068,18.041,97.1408]
[1688185687822,193.743,18.06,18.041,97.1408]
[1688185688002,193.743,18.06,18.038,22.175044]
[1688185689125,215.919076,18.06,18.038,22.175044]
[1688185689626,193.743,18.06,18.038,22.175044]
[1688185691123,193.743,18.06,18.039,55.0]
[1688185694726,193.743,18.06,18.038,22.175044]
[1688185696140,193.743,18.06,18.026,98.1547]
[1688185696141,58.31022,18.059,18.026,98.1547]
[1688185696315,193.852,18.05,18.027,20.0]
[1688185696510,193.852,18.05,18.021,113.5347]
[1688185696813,193.852,18.05,18.021,20.0]
[1688185696814,4.95085893,18.049,18.021,20.0]
[1688185697033,83.81,18.041,18.021,20.0]
[1688185697337,83.81,18.041,18.021,226.036239]
[1688185697726,23.447,18.041,18.021,226.036239]
[1688185699112,23.447,18.041,18.021,110.947739]
[1688185699315,83.838,18.035,18.01,18.14]
[1688185699523,83.838,18.035,18.012,30.0]
[1688185699724,83.838,18.035,18.013,20.0]
[1688185700319,83.838,18.035,18.01,18.14]
[1688185700626,23.455,18.035,18.01,18.14]
[1688185700830,110.139,18.041,18.014,3.0]
[1688185701033,4.95085893,18.04,18.02,18.14]
[1688185701418,23.446,18.042,18.02,18.14]
[1688185701625,23.446,18.042,18.021,75.0]
[1688185701913,83.805,18.042,18.021,75.0]
[1688185702113,83.805,18.042,18.015,90.5291]
[1688185702318,4.95085893,18.041,18.015,90.5291]
[1688185702538,55.0,18.04,18.016,20.0]
[1688185702740,23.457,18.033,18.016,20.0]
[1688185703236,4.95085893,18.032,18.004,3.0]
[1688185703418,63.54764703,18.05,18.014,3.0]
[1688185703620,60.363,18.041,18.02,18.21]
[1688185703820,23.451,18.038,18.02,18.21]
[1688185704019,23.451,18.038,18.021,20.0]
[1688185704220,23.451,18.038,18.014,3.0]
[1688185704636,23.451,18.038,18.014,22.194467]
[1688185704943,23.451,18.038,18.015,20.0]
[1688185706434,23.451,18.038,18.014,22.194467]
[1688185706819,23.451,18.038,18.015,20.0]
[1688185707338,23.456,18.034,18.015,20.0]
[1688185708238,23.456,18.034,18.016,55.0]
[1688185708434,23.456,18.034,18.017,20.0]
[1688185708645,618.69839061,18.089,18.02,18.11]
[1688185708646,10.83719922,18.043,18.02,18.11]
[1688185708822,83.813,18.04,18.018,10.83719922]
[1688185709023,23.448,18.04,18.021,20.0]
[1688185709227,23.446,18.042,18.021,30.83719922]
[1688185709638,60.333,18.05,18.022,55.0]
[1688185709844,60.296,18.061,18.03,18.14]
[1688185710043,23.425,18.058,18.031,75.0]
[1688185710737,23.425,18.058,18.032,10.83719922]
[1688185710932,34.26219922,18.058,18.033,75.0]
[1688185711136,10.83719922,18.057,18.033,75.0]
[1688185711434,23.435,18.05,18.033,65.83719922]
[1688185711641,41.595,18.05,18.016,99.8708]
[1688185711935,38.98862815,18.049,18.016,99.8708]
[1688185712240,23.449,18.04,18.016,99.8708]
[1688185712449,23.449,18.04,18.016,10.83719922]
[1688185712624,23.449,18.04,18.017,10.83719922]
[1688185713038,23.449,18.04,18.018,20.0]
[1688185713546,23.449,18.04,18.018,30.83719922]
[1688185713740,34.28619922,18.04,18.018,30.83719922]
[1688185713941,34.28619922,18.04,18.015,60.329]
[1688185713942,55.0,18.039,18.015,60.329]
[1688185714144,23.458,18.032,18.016,20.0]
[1688185714327,23.452,18.037,18.016,20.0]
[1688185714532,60.364,18.041,18.016,20.0]
[1688185714845,23.449,18.039,18.017,10.83719922]
[1688185715146,60.35,18.045,18.02,18.06]
[1688185715340,60.35,18.045,18.021,20.0]
[1688185715650,60.35,18.045,18.022,55.0]
[1688185715851,110.076,18.052,18.023,20.0]
[1688185716025,4.95085893,18.051,18.024,55.0]
[1688185716230,110.076,18.052,18.024,55.0]
[1688185716430,23.438,18.048,18.025,30.83719922]
[1688185716649,60.32,18.054,18.03,18.12]
[1688185716956,28.96141917,18.062,18.031,20.0]
[1688185717128,23.423,18.06,18.031,30.83719922]
[1688185717325,23.423,18.06,18.032,55.0]
[1688185717829,23.423,18.06,18.04,18.06]
[1688185718046,109.976,18.068,18.041,20.0]
[1688185718234,4.95085893,18.067,18.041,85.83719922]
[1688185718438,23.418,18.063,18.041,85.83719922]
[1688185719244,34.25519922,18.063,18.041,85.83719922]
[1688185719545,23.418,18.063,18.041,85.83719922]
[1688185719857,34.25519922,18.063,18.041,85.83719922]
[1688185720229,23.418,18.063,18.041,85.83719922]
[1688185720434,23.418,18.063,18.04,128.888411]
[1688185720435,3.20057,18.062,18.04,110.828411]
[1688185720639,193.806,18.054,18.04,110.828411]
[1688185720838,23.429,18.054,18.04,110.828411]
[1688185721048,193.806,18.054,18.03,18.06]
[1688185721254,4.95085893,18.053,18.022,98.0637]
[1688185721555,10.83719922,18.054,18.031,110.033]
[1688185721753,60.31,18.057,18.031,110.033]
[1688185721957,23.43,18.054,18.032,10.83719922]
[1688185722141,10.83719922,18.059,18.032,10.83719922]
[1688185722453,60.288,18.064,18.04,18.06]
[1688185722643,120.82419922,18.066,18.04,18.06]
[1688185722644,23.422,18.06,18.04,18.06]
[1688185722847,23.422,18.06,18.041,10.83719922]
[1688185723045,23.42,18.062,18.042,55.0]
[1688185723232,120.82419922,18.066,18.043,20.0]
[1688185723233,23.417,18.064,18.043,20.0]
[1688185723435,23.417,18.064,18.044,55.0]
[1688185723854,23.417,18.064,18.045,20.0]
[1688185724047,23.417,18.064,18.046,55.0]
[1688185724245,23.417,18.064,18.047,20.0]
[1688185724450,23.417,18.064,18.048,55.0]
[1688185724648,34.25419922,18.064,18.046,10.83719922]
[1688185724849,34.25419922,18.064,18.03,18.14]
[1688185725057,34.25419922,18.064,18.037,10.83719922]
[1688185725058,38.98862815,18.063,18.037,10.83719922]
[1688185725357,83.741,18.056,18.034,60.284]
[1688185725658,83.741,18.056,18.028,10.83719922]
[1688185725659,10.83719922,18.055,18.028,10.83719922]
[1688185725853,10.83719922,18.055,18.02,18.06]
[1688185725854,23.438,18.047,18.02,18.32]
[1688185726355,23.448,18.04,18.02,28.075845]
[1688185726559,23.448,18.04,18.021,10.83719922]
[1688185726948,23.448,18.04,18.022,20.0]
[1688185727347,10.83719922,18.046,18.023,10.83719922]
[1688185727860,10.83719922,18.046,18.024,20.0]
[1688185728061,78.654,18.05,18.024,20.0]
[1688185728240,23.438,18.048,18.025,10.83719922]
[1688185728440,23.438,18.048,18.026,20.0]
[1688185728759,23.438,18.048,18.027,10.83719922]
[1688185728960,23.438,18.048,18.028,55.0]
[1688185729340,60.313,18.056,18.03,18.32]
[1688185729555,4.95085893,18.058,18.031,55.0]
[1688185729737,4.95085893,18.058,18.031,65.83719922]
[1688185730066,23.428,18.055,18.032,20.0]
[1688185730357,23.428,18.055,18.033,10.83719922]
[1688185730556,10.83719922,18.054,18.033,10.83719922]
[1688185730761,23.431,18.053,18.033,10.83719922]
[1688185731059,23.431,18.053,18.034,20.0]
[1688185731461,23.431,18.053,18.035,10.83719922]
[1688185731839,23.431,18.053,18.036,20.0]
[1688185732044,23.431,18.053,18.037,55.0]
[1688185732549,3.0,18.042,18.0,28.32]
[1688185732743,23.461,18.03,18.002,25.0]
[1688185733153,23.461,18.03,18.01,18.3]
[1688185733362,110.15,18.039,18.01,18.3]
[1688185733546,23.461,18.03,18.01,18.3]
[1688185733864,23.461,18.03,18.002,25.0]
[1688185735048,23.461,18.03,18.003,20.0]
[1688185735653,23.461,18.03,18.002,25.0]
[1688185736051,23.461,18.03,18.01,18.3]
[1688185736654,91.36,18.02,18.003,45.44017211]
[1688185736844,194.311,18.007,18.0,10.1]
[1688185737041,194.311,18.007,17.961,224.48822736]
[1688185737259,23.493,18.005,17.971,4.72326715]
[1688185737458,160.87651714,18.006,17.965,4.22326715]
[1688185737459,23.51,17.993,17.965,4.22326715]
[1688185738046,60.474,18.008,17.98,18.27]
[1688185738248,133.852,18.005,17.966,12.87572]
[1688185738460,133.852,18.005,17.98,22.246585]
[1688185738461,137.10278,18.005,17.98,22.246585]
[1688185738758,133.852,18.005,17.98,22.246585]
[1688185738959,23.494,18.005,17.98,40.546585]
[1688185739341,23.494,18.005,17.981,85.8777]
[1688185739546,23.494,18.005,17.982,20.0]
[1688185739961,23.494,18.005,17.983,55.0]
[1688185740145,23.494,18.005,17.984,20.0]
[1688185740353,23.494,18.005,17.985,55.0]
[1688185740747,23.494,18.005,17.986,20.0]
[1688185740948,23.494,18.005,17.987,55.0]
[1688185741564,23.494,18.005,17.987,54.5]
[1688185741762,23.491,18.007,17.988,10.83719922]
[1688185742076,23.493,18.006,17.989,20.0]
[1688185742363,23.488,18.009,17.99,29.13719922]
[1688185742853,23.486,18.011,17.991,20.0]
[1688185743263,23.486,18.011,17.992,10.83719922]
[1688185743565,23.486,18.011,17.993,75.0]
[1688185743752,110.231,18.026,18.0,18.3]
[1688185743947,23.474,18.02,18.001,75.0]
[1688185744152,23.474,18.02,18.002,99.0166]
[1688185744353,23.474,18.02,18.003,75.0]
[1688185744568,23.474,18.02,18.003,10.83719922]
[1688185744864,10.83719922,18.019,18.001,75.0]
[1688185745066,23.482,18.014,17.994,99.0166]
[1688185745250,23.481,18.014,17.994,36.27020951]
[1688185745452,23.481,18.014,17.994,23.482]
[1688185745763,23.49,18.008,17.994,23.482]
[1688185745959,23.49,18.008,17.981,97.2602]
[1688185746167,23.501,18.0,17.981,97.2602]
[1688185746355,23.501,18.0,17.977,38.28484094]
[1688185746553,41.137768,18.011,17.982,10.83719922]
[1688185746752,23.489,18.009,17.983,20.0]
[1688185746952,23.489,18.009,17.983,117.2602]
[1688185747271,23.489,18.009,17.984,10.83719922]
[1688185747455,23.489,18.009,17.985,20.0]
[1688185747852,23.489,18.009,17.986,65.83719922]
[1688185748052,23.489,18.009,17.987,330.0]
[1688185748273,23.485,18.011,17.99,18.3]
[1688185748571,23.475,18.019,17.992,333.0]
[1688185748770,23.475,18.019,17.993,20.0]
[1688185748951,23.475,18.019,17.994,55.0]
[1688185749157,34.31219922,18.019,17.995,98.4517]
[1688185749359,34.31219922,18.019,17.996,75.0]
[1688185750367,34.31219922,18.019,17.996,85.83719922]
[1688185751557,34.31219922,18.019,17.997,10.83719922]
[1688185751757,23.475,18.019,17.997,10.83719922]
[1688185751962,34.31219922,18.019,17.996,20.0]
[1688185752671,23.475,18.019,17.996,30.83719922]
[1688185753771,23.475,18.019,17.997,65.83719922]
[1688185754269,23.475,18.019,17.997,230.33719922]
[1688185754566,23.475,18.019,17.998,20.0]
[1688185754957,23.475,18.019,17.996,20.0]
[1688185755258,23.475,18.019,17.999,10.83719922]
[1688185755455,23.475,18.019,18.0,20.0]
[1688185755769,23.475,18.019,18.001,10.83719922]
[1688185755973,23.475,18.019,18.002,75.0]
[1688185756350,23.475,18.019,18.002,85.83719922]
[1688185756555,23.475,18.019,18.003,10.83719922]
[1688185756751,23.475,18.019,18.004,55.0]
[1688185756975,60.42,18.024,18.005,20.0]
[1688185757162,23.473,18.021,18.006,55.0]
[1688185757355,23.471,18.022,18.007,118.9118]
[1688185757555,23.471,18.022,18.008,55.0]
[1688185757773,83.897,18.022,17.99,18.3]
[1688185757965,83.897,18.022,18.001,97.4249]
[1688185757966,8.46293158,18.021,18.001,97.4249]
[1688185758152,23.477,18.018,18.002,20.0]
[1688185758357,23.475,18.019,18.002,30.83719922]
[1688185758571,23.473,18.021,18.002,30.83719922]
[1688185758876,23.472,18.022,18.002,30.83719922]
[1688185759375,110.216,18.029,18.003,55.0]
[1688185759577,110.216,18.029,18.004,20.0]
[1688185759872,110.216,18.029,18.005,55.0]
[1688185760060,23.471,18.022,18.004,20.0]
[1688185760568,83.897,18.022,18.003,97.4249]
[1688185760865,83.897,18.022,18.004,20.0]
[1688185761070,83.897,18.022,18.002,20.0]
[1688185761570,83.897,18.022,18.002,30.83719922]
[1688185761777,83.897,18.022,18.003,55.0]
[1688185761976,83.897,18.022,18.004,20.0]
[1688185762181,83.897,18.022,18.005,55.0]
[1688185762361,83.897,18.022,18.006,20.0]
[1688185762562,23.471,18.022,18.007,55.0]
[1688185763264,23.471,18.022,18.007,147.2357]
[1688185765072,60.41,18.027,18.007,147.2357]
[1688185765375,60.399,18.03,18.007,181.56289922]
[1688185765579,60.399,18.03,18.007,210.70111621]
[1688185766080,23.469,18.024,18.014,23.48]
[1688185766273,83.888,18.024,18.008,36.99096628]
[1688185766579,83.888,18.024,18.007,103.07289922]
[1688185766777,83.888,18.024,18.008,42.82652184]
[1688185766958,23.469,18.024,18.01,23.486]
[1688185767272,60.375,18.038,18.015,494.5]
[1688185767573,60.375,18.038,18.011,79.40362772]
[1688185767574,23.458,18.032,18.016,101.16784232]
[1688185767875,23.0,18.051,18.016,101.16784232]
[1688185767876,28.98632934,18.046,18.017,20.0]
[1688185768074,23.441,18.045,18.02,18.3]
[1688185768378,23.438,18.048,18.027,83.873]
[1688185768676,60.324,18.053,18.037,23.451]
[1688185768677,23.437,18.049,18.037,23.451]
[1688185769066,23.437,18.049,18.038,55.0]
[1688185769372,60.324,18.053,18.038,78.45]
[1688185769571,18.3,18.07,18.038,78.45]
[1688185769572,23.429,18.054,18.038,102.11152922]
[1688185769891,23.426,18.057,18.039,10.83719922]
[1688185770062,0.50000006,18.057,18.04,55.0]
[1688185770257,0.50000006,18.057,18.045,23.441]
[1688185770579,0.50000006,18.057,18.046,87.81864]
[1688185770761,0.50000006,18.057,18.049,83.769]
[1688185770963,0.50000006,18.057,18.05,55.0]
[1688185771167,23.92500006,18.057,18.048,23.436]
[1688185771370,23.92500006,18.057,18.041,157.3704]
[1688185771577,23.92500006,18.057,18.042,23.444]
[1688185771779,23.92500006,18.057,18.041,23.445]
[1688185772685,23.92500006,18.057,18.038,60.305]
[1688185772869,21.3,18.05,18.038,60.305]
[1688185773075,21.3,18.05,18.019,110.27]
[1688185773076,193.888,18.047,18.019,110.27]
[1688185773370,23.449,18.039,18.021,194.161]
[1688185773571,0.50000006,18.038,18.021,194.161]
[1688185773760,0.50000006,18.038,18.026,194.099]
[1688185774166,0.50000006,18.038,18.027,10.83719922]
[1688185774468,23.451,18.037,18.023,60.421]
[1688185774668,60.368,18.04,18.027,23.464]
[1688185774669,23.95300006,18.036,18.027,23.464]
[1688185776067,0.50000006,18.036,18.027,23.464]
[1688185776482,0.50000006,18.036,18.027,34.30119922]
[1688185776670,0.50000006,18.036,18.028,10.83719922]
[1688185776982,23.433,18.052,18.031,194.052]
[1688185777189,23.43,18.054,18.032,67.82859]
[1688185777483,23.43,18.054,18.039,83.816]
[1688185777690,23.43,18.054,18.039,23.448]
[1688185777870,23.43,18.054,18.037,23.451]
[1688185778579,23.43,18.054,18.038,55.0]
[1688185778775,23.43,18.054,18.042,23.444]
[1688185779468,23.43,18.054,18.043,55.0]
[1688185779674,110.025,18.06,18.046,23.439]
[1688185779679,60.299,18.06,18.046,23.439]
[1688185779875,109.999,18.064,18.051,23.432]
[1688185779876,60.289,18.063,18.051,23.432]
[1688185780082,80.289,18.063,18.051,23.432]
[1688185780480,60.289,18.063,18.051,23.432]
[1688185780677,23.421,18.061,18.046,23.439]
[1688185780880,83.716,18.061,18.047,60.346]
[1688185781185,91.59,18.06,18.028,23.462]
[1688185781490,193.92,18.044,18.028,23.462]
[1688185782069,23.443,18.044,18.028,23.462]
[1688185782272,23.443,18.044,18.028,34.29919922]
[1688185782482,23.443,18.044,18.029,10.83719922]
[1688185782681,23.443,18.044,18.033,23.456]
[1688185783278,60.333,18.05,18.033,23.456]
[1688185783681,23.432,18.052,18.033,34.29319922]
[1688185783881,23.432,18.052,18.034,30.83719922]
[1688185784184,23.432,18.052,18.039,23.448]
[1688185784587,23.432,18.052,18.043,23.443]
[1688185785374,23.43,18.054,18.043,23.443]
[1688185785578,21.3,18.07,18.043,23.443]
[1688185785579,60.293,18.062,18.043,133.568]
[1688185785874,23.42,18.062,18.044,75.0]
[1688185786075,23.42,18.062,18.049,83.77]
[1688185786494,23.42,18.062,18.049,23.435]
[1688185787683,23.42,18.062,18.043,23.442]
[1688185787876,23.42,18.062,18.04,60.365]
[1688185787877,23.42,18.062,18.037,110.162]
[1688185788213,23.42,18.062,18.043,23.443]
[1688185788393,23.427,18.056,18.043,23.443]
[1688185790580,23.427,18.056,18.039,60.301]
[1688185790785,83.727,18.056,18.026,97.5272]
[1688185790984,18.3,18.05,18.011,3.0]
[1688185791188,133.585,18.041,18.018,32.83856]
[1688185791594,133.585,18.041,18.019,10.83719922]
[1688185791894,23.447,18.041,18.02,32.83714]
[1688185792278,23.447,18.041,18.021,10.83719922]
[1688185792493,23.447,18.041,18.022,20.0]
[1688185792688,23.447,18.041,18.022,32.83571]
[1688185792889,23.447,18.041,18.023,10.83719922]
[1688185793101,23.447,18.041,18.023,100.93349922]
[1688185793392,83.809,18.041,18.024,20.0]
[1688185793797,83.809,18.041,18.024,30.83719922]
[1688185794301,83.809,18.041,18.025,10.83719922]
[1688185794494,83.809,18.041,18.026,20.0]
[1688185794795,83.809,18.041,18.026,30.83719922]
[1688185795598,83.809,18.041,18.027,55.0]
[1688185796691,23.447,18.041,18.027,55.0]
[1688185796898,23.447,18.041,18.027,65.83719922]
[1688185798603,23.447,18.041,18.027,10.83719922]
[1688185798782,23.447,18.041,18.023,90.0963]
[1688185799287,23.447,18.041,18.024,20.0]
[1688185799491,60.361,18.049,18.024,30.83719922]
[1688185799685,60.342,18.048,18.025,12.83358]
[1688185799883,60.33,18.051,18.026,20.0]
[1688185800199,60.33,18.051,18.027,67.83215]
[1688185800393,60.33,18.051,18.028,12.83144]
[1688185800593,60.33,18.051,18.029,55.0]
[1688185800796,23.44,18.046,18.029,55.0]
[1688185800998,23.44,18.046,18.03,10.83719922]
[1688185801191,23.44,18.046,18.031,55.0]
[1688185801395,83.785,18.046,18.031,55.0]
[1688185801901,83.785,18.046,18.031,65.83719922]
[1688185802107,83.785,18.046,18.03,55.0]
[1688185802288,83.785,18.046,18.024,20.0]
[1688185802689,83.785,18.046,18.026,10.83719922]
[1688185802889,83.785,18.046,18.027,20.0]
[1688185803290,23.44,18.046,18.028,10.83719922]
[1688185804708,23.44,18.046,18.029,67.83073]
[1688185805000,23.438,18.048,18.03,12.83002]
[1688185805203,60.33,18.051,18.031,55.0]
[1688185805410,60.33,18.051,18.032,20.0]
[1688185805590,60.33,18.051,18.033,55.0]
[1688185805914,23.434,18.05,18.034,20.0]
[1688185806094,23.434,18.05,18.035,55.0]
[1688185806403,23.434,18.05,18.036,20.0]
[1688185806607,23.434,18.05,18.037,55.0]
[1688185806910,23.434,18.05,18.038,10.83719922]
[1688185807101,23.434,18.05,18.039,55.0]
[1688185807495,23.434,18.05,18.04,10.83719922]
[1688185807809,170.294,18.063,18.041,55.0]
[1688185808011,193.71,18.063,18.041,75.0]
[1688185808189,23.418,18.063,18.042,10.83719922]
[1688185808394,23.418,18.063,18.043,75.0]
[1688185808709,23.418,18.063,18.044,10.83719922]
[1688185809090,23.418,18.063,18.045,75.0]
[1688185809290,23.418,18.063,18.044,10.83719922]
[1688185809490,83.736,18.057,18.044,10.83719922]
[1688185809895,83.736,18.057,18.032,50.62336837]
[1688185810104,83.736,18.057,18.042,95.237]
[1688185810309,83.736,18.057,18.036,23.66294922]
[1688185810500,83.736,18.057,18.042,10.83719922]
[1688185810890,23.426,18.057,18.042,10.83719922]
[1688185811093,23.426,18.057,18.042,33.00955122]
[1688185811518,60.286,18.064,18.043,65.83719922]
[1688185811805,23.426,18.057,18.043,173.53796922]
[1688185812509,23.423,18.059,18.043,78.65796922]
[1688185812708,23.419,18.063,18.045,164.5]
[1688185812914,23.415,18.065,18.046,239.5]
[1688185813211,60.266,18.07,18.046,239.5]
[1688185813212,23.413,18.067,18.05,18.3]
[1688185813402,23.411,18.069,18.051,67.81509]
[1688185813712,109.925,18.076,18.051,67.81509]
[1688185813713,170.171,18.076,18.052,20.0]
[1688185813905,23.407,18.071,18.053,55.0]
[1688185814100,23.407,18.071,18.054,12.81296]
[1688185814304,23.407,18.071,18.055,20.0]
[1688185814512,23.407,18.071,18.056,67.81154]
[1688185814817,23.407,18.071,18.057,10.83719922]
[1688185814992,23.407,18.071,18.058,55.0]
[1688185815409,23.407,18.071,18.059,10.83719922]
[1688185815609,23.407,18.071,18.06,55.0]
[1688185815809,60.254,18.074,18.06,55.0]
[1688185816018,23.407,18.071,18.061,10.83719922]
[1688185816315,23.407,18.071,18.062,55.0]
[1688185816821,83.669,18.071,18.063,10.83719922]
[1688185817004,23.407,18.071,18.064,55.0]
[1688185817610,23.405,18.073,18.064,65.83719922]
[1688185817819,60.242,18.077,18.065,10.83719922]
[1688185818118,23.405,18.073,18.066,55.0]
[1688185818319,60.233,18.08,18.067,20.0]
[1688185818615,23.399,18.078,18.068,55.0]
[1688185818814,23.399,18.078,18.064,109.945]
[1688185819116,23.399,18.078,18.059,23.422]
[1688185819517,23.399,18.078,18.06,34.25819922]
[1688185819815,23.399,18.078,18.061,10.83719922]
[1688185820019,23.399,18.078,18.061,34.25719922]
[1688185820215,23.399,18.078,18.061,10.83719922]
[1688185820408,23.399,18.078,18.061,34.25719922]
[1688185821211,23.399,18.078,18.061,10.83719922]
[1688185821414,112.909,18.079,18.046,23.44]
[1688185821415,193.679,18.066,18.046,23.44]
[1688185821613,193.679,18.066,18.047,43.438]
[1688185822123,193.679,18.066,18.047,154.258269]
[1688185822620,204.51619922,18.066,18.043,60.353]
[1688185822828,204.51619922,18.066,18.041,110.134]
[1688185822829,18.3,18.06,18.034,96.7042]
[1688185823025,18.3,18.06,18.038,23.449]
[1688185823026,193.825,18.053,18.038,23.449]
[1688185823325,83.757,18.053,18.038,23.449]
[1688185823524,23.432,18.053,18.038,23.449]
[1688185824016,23.432,18.053,18.036,23.452]
[1688185824223,23.432,18.053,18.035,96.7042]
[1688185824404,83.78,18.047,18.035,23.454]
[1688185824606,23.438,18.047,18.035,23.454]
[1688185825023,18.3,18.06,18.035,23.454]
[1688185825024,23.438,18.048,18.035,34.29119922]
[1688185825229,170.362,18.056,18.035,94.62419922]
[1688185825525,23.431,18.053,18.041,23.446]
[1688185825906,83.753,18.053,18.021,164.5]
[1688185826106,83.753,18.053,18.033,23.455]
[1688185826107,94.59019922,18.053,18.033,23.455]
[1688185826314,193.894,18.046,18.031,23.458]
[1688185827014,193.894,18.046,18.029,23.461]
[1688185827428,193.894,18.046,18.023,110.247]
[1688185827429,20.0,18.045,18.019,60.435]
[1688185827609,23.451,18.038,18.018,110.275]
[1688185827813,23.451,18.038,18.027,23.464]
[1688185828111,110.101,18.047,18.027,23.464]
[1688185828315,110.101,18.047,18.027,34.30119922]
[1688185828617,23.438,18.047,18.034,23.455]
[1688185828811,23.438,18.047,18.036,23.452]
[1688185829013,60.32,18.054,18.037,55.0]
[1688185829212,23.433,18.052,18.041,23.445]
[1688185829440,23.433,18.052,18.042,55.0]
[1688185829612,23.433,18.052,18.043,23.443]
[1688185829928,23.433,18.052,18.038,90.5362]
[1688185830425,23.433,18.052,18.039,55.0]
[1688185830825,23.433,18.052,18.039,78.448]
[1688185832408,23.433,18.052,18.036,55.0]
[1688185832614,3.0,18.049,18.013,60.455]
[1688185832814,212.256,18.04,18.012,30.0]
[1688185833126,42.63493661,18.039,18.013,22.206223]
[1688185833312,194.051,18.032,18.013,22.206223]
[1688185833513,55.0,18.031,18.007,23.49]
[1688185833832,194.131,18.024,18.005,93.0211]
[1688185834528,194.131,18.024,18.006,20.0]
[1688185835031,194.131,18.024,18.006,43.491]
[1688185835428,20.0,18.023,17.998,60.503]
[1688185835618,194.218,18.016,18.0,23.499]
[1688185836217,23.479,18.016,18.0,84.002]
[1688185837735,23.479,18.016,18.0,23.499]
[1688185837936,23.477,18.018,18.0,23.499]
[1688185838229,23.477,18.018,18.001,12.85069]
[1688185838712,23.477,18.018,17.986,97.3092]
[1688185839035,194.357,18.003,17.986,97.3092]
[1688185839224,194.357,18.003,17.985,60.439]
[1688185839427,23.504,17.997,17.985,60.439]
[1688185839614,23.502,17.999,17.985,23.519]
[1688185839931,23.504,17.997,17.983,24.0495062]
[1688185840139,23.504,17.997,17.983,0.5285062]
[1688185840835,23.504,17.997,17.983,23.522]
[1688185841144,23.504,17.997,17.982,23.522]
[1688185841315,23.504,17.997,17.98,23.525]
[1688185842329,20.0,17.996,17.971,23.536]
[1688185842539,194.512,17.989,17.969,23.539]
[1688185842835,194.512,17.989,17.965,4.22326715]